Cogmind - Beta 13 @@@ ROGUE MODE // 2024.05.21 @ 16:13:40 Player: Crackrock_Steady Result: Destroyed by P-60 Hacker with Shock Rifle Performance ------------- Evolutions (3) 1500 Regions Visited (4) 800 Robots Destroyed (93) 465 Value Destroyed (3064) 3064 Prototype IDs (3) 60 Alien Tech Used (0) 0 Bonus (159) 159 TOTAL SCORE: 6048 Bonus ------- High Alert Combat Kills 159 Cogmind --------- Core Integrity 0/700 Matter 75/300 Energy 156/310 System Corruption 9% Temperature Cool (8) Movement Treading (320) Ox2 Location -7/Factory Parts ------- > --- POWER (1) -------- Heavy Deuterium Engine > --- PROPULSION (2) --- Light Treads > --- UTILITY (8) ------ Large Storage Unit Visual Processing Unit Signal Interpreter Recoil Stabilizer Improved Light Armor Plating > --- WEAPON (2) ------- Flak Cannon Heavy Missile Launcher > --- INVENTORY (15) --- Improved Heat Sink Improved Heat Sink Improved Heat Sink Improved Terrain Scanner Heavy Ion Cannon Heavy Missile Launcher Heavy Missile Launcher Heavy Missile Launcher Hammer Katana Peak State ------------ > --- POWER ------------ Improved Deuterium Engine > --- PROPULSION ------- Advanced Treads Advanced Treads > --- UTILITY ---------- Heat Sink Improved Heat Sink Large Storage Unit Medium Matter Pod Visual Processing Unit Visual Processing Unit Signal Interpreter Particle Charger > --- WEAPON ----------- Heavy Ion Cannon Gauss Cannon > --- INVENTORY -------- Heavy Deuterium Engine Micro Nuclear Core Advanced Treads Improved Heat Sink Recoil Stabilizer Heavy Ion Cannon Heavy Ion Cannon Flak Cannon Heavy Missile Launcher Heavy Missile Launcher Heavy Missile Launcher Heavy Missile Launcher Heavy Missile Launcher Hammer Katana [Rating: 37] Favorites ----------- Power Ion Engine Engine Ion Engine Power Core Micro Nuclear Core Propulsion Improved Treads Treads Improved Treads Utility Visual Processing Unit Device Heat Sink Storage Large Storage Unit Processor Visual Processing Unit Protection Light Armor Plating Weapon Particle Gun Energy Gun Particle Gun Energy Cannon Heavy Ion Cannon Ballistic Gun Light Assault Rifle Ballistic Cannon Gauss Cannon Launcher Heavy Missile Launcher Slashing Weapon Katana Build | -11 -10 -9 -8 -7 ------- Run | Yrd Mat Mat Mat Fac Slots Evolved 6 | . . 2 2 2 Power . | . . . . . Propulsion . | . . . . . Utility 6 | . . 2 2 2 Weapon . | . . . . . Parts Attached 76 | 7 7 14 13 35 Power 13 | 1 1 2 2 7 Engine 10 | 1 1 2 1 5 Core 3 | . . . 1 2 Reactor . | . . . . . Propulsion 16 | 2 2 4 2 6 Treads 16 | 2 2 4 2 6 Leg . | . . . . . Wheel . | . . . . . Hover . | . . . . . Flight . | . . . . . Utility 22 | 2 1 5 4 10 Device 13 | 1 . 3 2 7 Storage 3 | 1 1 . . 1 Processor 3 | . . 1 2 . Hackware . | . . . . . Protection 3 | . . 1 . 2 Artifact . | . . . . . Weapon 25 | 2 3 3 5 12 Energy Gun 7 | 2 3 2 . . Energy Cannon 6 | . . . 2 4 Ballistic Gun 2 | . . 1 1 . Ballistic Cannon 5 | . . . 2 3 Launcher 4 | . . . . 4 Special Weapon . | . . . . . Impact Weapon . | . . . . . Slashing Weapon 1 | . . . . 1 Piercing Weapon . | . . . . . Special Melee Weapon . | . . . . . Unidentified Prototypes 1 | . . . . 1 Parts Lost 39 | . . 6 8 25 Power 10 | . . 1 3 6 Propulsion 11 | . . 2 3 6 Utility 13 | . . 2 2 9 Weapon 5 | . . 1 . 4 Highest Loss Streak 8 | . . 3 4 8 To Critical Strikes . | . . . . . Average Slot Usage (%) 91 | . 100 97 96 82 Engine 7 | . 14 10 7 4 Treads 17 | . 28 21 16 13 Device 19 | . 14 24 24 15 Storage 11 | . 14 11 9 11 Processor 13 | . . 5 19 20 Protection 1 | . . 2 . . Energy Gun 9 | . 28 18 2 . Energy Cannon 3 | . . . 6 4 Ballistic Cannon 3 | . . . 6 4 Naked Turns . | . . . . . Heaviest Build 52 | 15 32 36 44 52 Greatest Support 46 | 40 46 46 45 44 Greatest Overweight (x) 10 | . . 10 1 7 Average Overweight (x) . | . . . . . Largest Inventory Capacity 15 | 8 15 15 15 15 Average Capacity 13 | 7 9 15 15 15 Most Carried 15 | 5 8 15 15 15 Average Carried 12 | 2 7 12 14 13 Final Capacity 15 | 8 15 15 15 15 Final Carried 15 | 3 8 15 14 10 Class Distribution -------------------- 63% | Scavenger-Mutant 36% | Mutant Dominant Class ---------------- Mutant | -10/Materials Scavenger-Mutant | -9/Materials Scavenger-Mutant | -8/Materials Scavenger-Mutant | -7/Factory Resources | -11 -10 -9 -8 -7 ----------- Run | Yrd Mat Mat Mat Fac Matter Collected 1588 | 270 56 152 331 779 Remotely . | . . . . . Salvage Created 2961 | 152 291 1000 312 1206 Parts 174 | 10 28 47 21 68 Haulers Intercepted 2 | . . . . 2 Recyclers Shooed 1 | . . 1 . . Parts Field Recycled . | . . . . . Retrieved Matter . | . . . . . Parts Self-Destructed . | . . . . . Prevented . | . . . . . Kills | -11 -10 -9 -8 -7 ------- Run | Yrd Mat Mat Mat Fac Combat Hostiles Destroyed 66 | . 8 23 9 26 Melee 4 | . . . . 4 Guns 31 | . 8 21 2 . Cannons 18 | . . . 7 11 AOE 10 | . . . . 10 Classes Destroyed 15 | 2 4 2 4 3 Worker 4 | . . . 2 2 Builder 6 | . 1 . 1 4 Tunneler 4 | 3 . . . 1 Hauler 2 | . . . . 2 Recycler 3 | 1 . . . 2 Mechanic 1 | . . . . 1 Watcher 7 | . 2 2 2 1 Swarmer 6 | . 3 3 . . Grunt 40 | . 5 13 4 18 Brawler 2 | . . 1 1 . Duelist 1 | . . . 1 . Sentry 11 | . . 6 1 4 Hunter 1 | . . . 1 . Programmer 3 | . . . . 3 Heavy 2 | . . . 1 1 Best Kill Streak 6 | 3 4 5 4 6 Combat Bots Only 5 | . 3 4 3 5 Max Kills in Single Turn 3 | 1 2 1 2 3 Gunslinging 1 | . 1 . . . Exploded 2 | . . . . 2 Melee 1 | . . . . 1 Uniques/NPCs Destroyed . | . . . . . Combat | -11 -10 -9 -8 -7 -------- Run | Yrd Mat Mat Mat Fac Hostile Shots Fired 575 | . 18 116 95 346 Missed 175 | . 5 28 23 119 Damage Taken 5729 | . 114 1163 1454 2998 Core 1237 | . . 216 314 707 Absorbed by Shields . | . . . . . Core Remaining (%) 72 | 100 100 46 42 . Volleys Fired 216 | 10 17 74 41 74 Largest 2 | 2 2 2 2 2 Hottest 130 | 100 130 130 130 130 Shots Fired 386 | 17 34 131 77 127 Gun 190 | 17 34 131 8 . Cannon 177 | . . . 69 108 Launcher 19 | . . . . 19 Special . | . . . . . Kinetic 141 | . . 16 62 63 Thermal 226 | 17 34 115 15 45 Explosive 19 | . . . . 19 Electromagnetic . | . . . . . Robot Hit Streak 23 | 5 5 23 8 10 Robot Miss Streak 8 | 1 3 3 8 7 Penetration Max 1 | . . . . 1 Secondary Targets 4 | . 3 1 . . Max Gunslinging Chain 1 | . 1 1 . . Shots Hit Robots 281 | 12 20 93 61 95 Core Hits 186 | 5 13 39 61 68 Critical Kills 1 | . . . . 1 Critical Parts Destroyed . | . . . . . Critical Strikes 13 | . 2 6 . 5 Burn 8 | . 2 6 . . Meltdown 1 | . . . . 1 Blast 1 | . . . . 1 Sever 3 | . . . . 3 Melee Attacks 20 | . . . . 20 Impact . | . . . . . Slashing 20 | . . . . 20 Piercing . | . . . . . Sneak Attacks 1 | . . . . 1 Combat Hostiles . | . . . . . Follow-up Attacks . | . . . . . Damage Inflicted 7235 | 149 355 1405 1308 4018 Guns 1973 | 149 352 1395 77 . Cannons 3113 | . . . 1231 1882 Explosions 1620 | . . . . 1620 Melee 516 | . . . . 516 Ramming 13 | . 3 10 . . Kinetic 2432 | . . 102 1117 1213 Thermal 2654 | 149 352 1293 191 669 Explosive 1620 | . . . . 1620 Electromagnetic . | . . . . . Impact . | . . . . . Slashing 516 | . . . . 516 Piercing . | . . . . . Highest Corruption 7 | . . . 1 7 Average Corruption 1 | . . . 1 2 Corruption Purged . | . . . . . Corruption Blocked . | . . . . . Effects 8 | . . . . 8 Message Errors 3 | . . . . 3 Data Loss (minor) 4 | . . . . 4 Misfires 1 | . . . . 1 Overload Shots . | . . . . . Overflow Damage 149 | . . 1 . 148 Projectiles 16 | . . . . 16 Explosions 92 | . . . . 92 Melee 41 | . . 1 . 40 Knockbacks 35 | . . 1 21 13 Impact 1 | . . 1 . . Kinetic 32 | . . . 20 12 Secondary 2 | . . . 1 1 Self-Inflicted Damage 214 | . . . . 214 Shots 3 | . . . . 3 Rammed 5 | . 1 3 1 . Targets Rammed 5 | . 1 3 1 . Kicked . | . . . . . Crushed . | . . . . . Highest Temperature 414 | 244 414 279 6 15 Average Temperature 113 | 120 168 87 3 7 Received Heat Transfer 1563 | . 24 435 252 852 Effects 7 | 1 2 4 . . Energy Bleed 1 | . 1 . . . Interference 5 | 1 . 4 . . Damage (minor) 1 | . 1 . . . Siege Activations . | . . . . . Robots Corrupted . | . . . . . Combat Hostiles . | . . . . . Parts Fried . | . . . . . Impact Corruptions 1 | . . 1 . . Robots Melted 3 | . . 2 . 1 Combat Hostiles 3 | . . 2 . 1 Parts Melted 23 | . 5 16 . 2 Heat Transferred 5994 | 444 962 3441 259 888 Parts Sabotaged . | . . . . . Parts Stolen . | . . . . . Parts Stripped . | . . . . . Power Chain Reactions . | . . . . . Alert | -11 -10 -9 -8 -7 ------- Run | Yrd Mat Mat Mat Fac Peak Influence 523 | 20 252 523 304 473 Initial 157 | . 13 21 157 105 Average 233 | 10 91 282 182 293 Maximum Alert Level 2 | . 1 2 1 2 Low Security (%) 47 | 100 95 29 67 30 Level 1 33 | . 4 50 32 37 Level 2 18 | . . 20 . 32 Level 3 . | . . . . . Level 4 . | . . . . . Level 5 . | . . . . . High Security . | . . . . . Max Security . | . . . . . Squads Dispatched 16 | . 2 4 4 6 Investigation 6 | . 2 2 1 1 Extermination 2 | . . . . 2 Reinforcement 6 | . . 2 1 3 Assault . | . . . . . Garrison 2 | . . . 2 . Intercept . | . . . . . Searches Triggered . | . . . . . Construction Impeded . | . . . . . Haulers Reinforced . | . . . . . Active Scanning Responses . | . . . . . Cargo Convoy Interrupts . | . . . . . Stealth | -11 -10 -9 -8 -7 --------- Run | Yrd Mat Mat Mat Fac Distress Signals 8 | . 1 3 3 1 Communications Jammed . | . . . . . Distress Signals . | . . . . . Times Spotted 96 | . 13 33 16 34 Peak Tracking Total 6 | . 4 5 6 4 Tactical Retreats 4 | . . 4 . . Traps | -11 -10 -9 -8 -7 ------- Run | Yrd Mat Mat Mat Fac Traps Triggered 4 | . 2 1 1 . Indirectly . | . . . . . Trap Hack Attempts . | . . . . . Triggered . | . . . . . Disarmed . | . . . . . Reprogrammed . | . . . . . Reused . | . . . . . Traps Extracted . | . . . . . Installed . | . . . . . Triggered . | . . . . . Machines | -11 -10 -9 -8 -7 ---------- Run | Yrd Mat Mat Mat Fac Machines Disabled 6 | . . 1 . 5 Max in Single Turn 2 | . . 1 . 2 Machines Repaired . | . . . . . Machines Dismantled . | . . . . . Machines Sabotaged . | . . . . . Overloaded Fab Kills . | . . . . . Hacking | -11 -10 -9 -8 -7 --------- Run | Yrd Mat Mat Mat Fac Machines Accessed 11 | . 3 4 2 2 Terminals 10 | . 3 3 2 2 Fabricators . | . . . . . Repair Stations . | . . . . . Recycling Units 1 | . . 1 . . Scanalyzers . | . . . . . Garrison Access . | . . . . . Total Hacks 31 | . 10 11 6 4 Successful 9 | . 1 4 3 1 Failed 22 | . 9 7 3 3 Catastrophic 4 | . . 2 1 1 Database Lockouts . | . . . . . Manual 18 | . 9 7 2 . Terminals 30 | . 10 10 6 4 Fabricators . | . . . . . Repair Stations . | . . . . . Recycling Units 1 | . . 1 . . Scanalyzers . | . . . . . Garrison Access . | . . . . . Terminal Hacks 9 | . 1 4 3 1 Robot Analysis 6 | . . 4 2 . Prototype ID Bank 1 | . 1 . . . Open DSF 1 | . . . . 1 Zone Layout 1 | . . . 1 . Fabricator Hacks . | . . . . . Repair Station Hacks . | . . . . . Recycling Unit Hacks . | . . . . . Scanalyzer . | . . . . . Garrison Access Hacks . | . . . . . Unauthorized Hacks . | . . . . . Terminals . | . . . . . Fabricators . | . . . . . Repair Stations . | . . . . . Recycling Units . | . . . . . Scanalyzers . | . . . . . Garrison Access . | . . . . . Data Cores Recovered . | . . . . . Used . | . . . . . Hacking Detections 10 | . 3 4 2 1 Full Trace Events 8 | . 3 3 1 1 Feedback Events . | . . . . . Feedback Blocked . | . . . . . Robot Schematics Acquired . | . . . . . Robots Built . | . . . . . Authchips . | . . . . . Time . | . . . . . Total Robot Build Rating . | . . . . . Part Schematics Acquired . | . . . . . Parts Built . | . . . . . Authchips . | . . . . . Time . | . . . . . Total Part Build Rating . | . . . . . Parts Repaired . | . . . . . Time . | . . . . . Parts Recycled . | . . . . . Recycled Matter . | . . . . . Retrieved Matter . | . . . . . Retrieved Components . | . . . . . Parts Scanalyzed . | . . . . . Part Schematics Acquired . | . . . . . Parts Damaged . | . . . . . Bothacking | -11 -10 -9 -8 -7 ------------ Run | Yrd Mat Mat Mat Fac Used RIF Installer . | . . . . . Robots Hacked . | . . . . . Non-combat . | . . . . . Combat . | . . . . . Robot Hacks Applied . | . . . . . Relay Couplers Released 4 | . . . . 4 Programmers 4 | . . . . 4 Fabnet Peak Effective % . | . . . . . Robots Rewired . | . . . . . Allies Hacked . | . . . . . Hacks Repelled . | . . . . . Allies | -11 -10 -9 -8 -7 -------- Run | Yrd Mat Mat Mat Fac Total Allies . | . . . . . Largest Group . | . . . . . Highest-Rated Group . | . . . . . Highest-Rated Ally . | . . . . . Total Orders . | . . . . . Ally Attacks . | . . . . . Total Damage . | . . . . . Kills . | . . . . . Allies Corrupted . | . . . . . Allies Melted . | . . . . . Intel | -11 -10 -9 -8 -7 ------- Run | Yrd Mat Mat Mat Fac Robot Analysis Total 6 | . . 4 2 . Derelict Logs Recovered . | . . . . . Drone Launches . | . . . . . Drone Recoveries . | . . . . . Exploration | -11 -10 -9 -8 -7 ------------- Run | Yrd Mat Mat Mat Fac Turns Passed 3192 | 129 426 835 524 1278 Spaces Moved 1297 | 66 213 335 208 475 Core 22 | 17 . 2 . 3 Treads 1275 | 49 213 333 208 472 Legs . | . . . . . Wheels . | . . . . . Hover . | . . . . . Flight . | . . . . . Fastest Speed 50 | 50 160 160 152 145 Average Speed 177 | 131 160 163 183 197 Slowest Speed 550 | 160 160 550 240 400 Overloaded Moves . | . . . . . Propulsion Burnouts . | . . . . . Robots Hopped . | . . . . . Cave-ins Triggered . | . . . . . Exploration Rate (%) 26 | 4 34 43 32 17 Regions Visited 4 Branch Regions . Pre-discovered Areas . | . . . . . Known Exits Taken 1 | . . . 1 . Unknown Exits Taken 3 | 1 1 1 . . Scrap Searched . | . . . . . Spaces Dug . | . . . . . Terrain Destroyed 206 | . . . 7 199 Melee . | . . . . . Projectile 29 | . . . 7 22 AOE 177 | . . . . 177 Terrain Rammed . | . . . . . Walls Destroyed . | . . . . . Machines Disabled . | . . . . . Actions | -11 -10 -9 -8 -7 --------- Run | Yrd Mat Mat Mat Fac Total 1775 | 91 265 495 272 652 Wait 69 | . 6 43 2 18 Move 1293 | 65 212 334 207 475 Hop . | . . . . . Pick Up 71 | 9 13 20 5 24 Fast Attach 9 | 1 2 . 3 3 Attach 42 | 6 . 8 5 23 Detach . | . . . . . Swap 25 | . 5 6 5 9 Drop 25 | . 9 7 3 6 Fire 216 | 10 17 74 41 74 Melee 20 | . . . . 20 Ram . | . . . . . Kick . | . . . . . Crush 5 | . 1 3 1 . Escape Stasis . | . . . . . Rewire . | . . . . . Trap . | . . . . . Miscellaneous . | . . . . . Route ------- -11/Scrapyard -10/Materials -9/Materials -8/Materials -7/Factory (discovered 1 exit: *Sto) History --------- Turn | Location | Event 11 | -11/Scrapyard | Discovered new exit (range 15) 130 | -11/Scrapyard | Entered Materials 315 | -10/Materials | Build established: Mutant 553 | -10/Materials | Discovered new exit (range 3) 556 | -10/Materials | Entered another Materials area 556 | -9/Materials | Evolved 2 slots: Utility x2 991 | -9/Materials | Lost 3 parts (2n1u) 1124 | -9/Materials | Build established: Scavenger-Mutant 1159 | -9/Materials | Core integrity fell below 50% 1372 | -9/Materials | Discovered new exit (range 5) 1391 | -9/Materials | Entered another Materials area 1391 | -8/Materials | Evolved 2 slots: Utility x2 1811 | -8/Materials | Garrison activated, responded to threat 1847 | -8/Materials | Discovered new exit (range 17) 1875 | -8/Materials | Core integrity fell below 50% 1913 | -8/Materials | Identified exit to Factory 1915 | -8/Materials | Entered Factory 1915 | -7/Factory | Evolved 2 slots: Utility x2 1919 | -7/Factory | Lost 4 parts (1p2n1u) 2637 | -7/Factory | Discovered new exit (range 11) 2658 | -7/Factory | Identified exit to Storage 2804 | -7/Factory | Lost 6 parts (2p1n3u) 2947 | -7/Factory | Core integrity fell below 50% 2998 | -7/Factory | Lost 8 parts (1p2n2u3w) 3133 | -7/Factory | Core integrity fell below 20% 3193 | -7/Factory | Destroyed by P-60 Hacker with Shock Rifle Last Messages --------------- 03165_ ALERT: Rogue bot located, Programmers report to Factory Zone 9R. 03168_ P-70 Sage knocked back. 03172_ Imp. Deuterium Engine destroyed. 03176_ M-28 Smith knocked back. 03177_ Hvy. Missile Launcher destroyed. 03178_ P-70 Sage knocked back. 03180_ P-70 Sage destroyed. 03180_ R-06 Scavenger collects Flak Gun. 03183_ P-60 Hacker resets T-07 Excavator, system corruption cleaned. 03183_ R-06 Scavenger collects Imp. Heat Sink. 03185_ Destroyed Shock Rifle. 03185_ Imp. Light Armor Plating destroyed. 03188_ Identified Hvy. Deuterium Engine. 03188_ P-60 Hacker resets P-60 Hacker, system corruption cleaned. 03189_ Destroyed Gravmag System. 03190_ Lgt. Treads destroyed. 03192_ P-60 Hacker destroyed. Map ----- +----------------------------------------------------+ | | | | | | | | | | | | | ?????????????????????????????????????????????????? | | ?????????????????????????????????????????????????? | | ???????????????????????? ????????????????????????? | | ??????????????????????## "???????????????????????? | | ?????????????????????? ???????????????????????? | | ?????????????????????? #??????????????????????? | | ?????????????????????? ??????????????????????? | | ?????????????????????? ??????????????????????? | | ?????????????????????? ??????????????????????? | | ?????????????????????? ??????????????????????? | | ??????????????????????? ???????????????????????? | | ??????????????????????? ??????#????????????????? | | ??????????????????????? ????? #?###????????????? | | ??????????????????????? ???? # #????????????? | | ???????????????????????!!|??? #????????????? | | ???????????????????????!%!?? #????????????? | | ???????????????????????#!#?# ## ???????? | | ???????????????????????# # % p ???????? | | ??????????????#### ### # = #???????????? | | ???????? T @ #???????????? | | ???????? ## ### # """ #???????????? | | ??????????? ???????????# # """ #???????????? | | ???????????? ??????????# #?""" !! ###???????????? | | ???????????? ?????????#=#? ??????????????? | | ????????????? ????????#=#?? ???????????????? | | ????????????###+######?#!#??#####????????????????? | | ????????????# !#?#!#???????????????????????? | | ????????????# "" ### ###?????????????????????? | | ????????????# "" # #?????????????????????? | | ????????????# """ # #?????????????????????? | | ????????????# """ + #?????????????????????? | | ????????????# """ # #?????????????????????? | | ????????????# # [#?????????????????????? | | ????????????# ""T"" ## ##?????????????????????? | | ????????????# """"" ## #??????????????????????? | | ????????????########### #??????????????????????? | | ??????????????????????# #??????????????????????? | | ??????????????????????# #??????????????????????? | | ??????????????????????# ##?????????????????????? | | ??????????????????????# ##?????????????????????? | | ?????###########??????# #??????????????????????? | | ?????# #??????# #??????????????????????? | | ?????# ######## #########??????????????? | | ?????# #??????????????? | +----------------------------------------------------+ Best States ------------- Heat Dissipation 59 Energy Generation 18 Energy Capacity 310 Matter Stores 300 Matter Capacity 400 Sight Range 18 Terrain Scan Density 10 Armor Coverage 300 Evasion (%) 50 Recoil Reduction 6 Energy Filtering 30 Particle Charging 15 Item Schematics ----------------- None Robot Schematics ------------------ None Fabricated ------------ Nothing Alien Tech Used ----------------- None Achievements -------------- More Dakka Please Challenges ------------ None Game ------ Seed AntimatterTacticalPenetrator Manual? 0 Play Time 00:40:14 Cumulative 16.4 hours Start 2024.05.21 @ 15:35:40 End 2024.05.21 @ 16:13:40 Sessions 1 Manual Loads 0 Difficulty Rogue Special Mode None Game No. 36 Rogue 36 Adventurer 0 Explorer 0 Win Type - Total 0 Types 0/0/0/0/0/0/0/0/0 Lore% 24 Gallery% 20 Achievement% 19 Wizard Run 0 Options --------- Layout 1 ASCII 0 Keyboard 0 Movement Mouse Keybinds 0 Fullscreen 1 Font 24/Smallcaps Map View 50x35 Zoom Use 0% Tactical HUD 1 Map Filters NONE Filters NONE Steam 1 RUN: 14b7da98-2a16-43ea-b8cc-8b31a2241350